bitfinex/quotes_SOLUSD_20250805
["timestamp","ask_amount","ask_price","bid_price","bid_amount"]
[1754393822944,32.80473214,170.99,170.98,0.06]
[1754393823150,38.65302736,170.99,170.98,0.06]
[1754393823317,53.9014045,170.99,170.98,0.06]
[1754393826233,57.8360636,170.99,170.98,0.06]
[1754393830051,36.08939124,170.99,170.98,0.06]
[1754393832051,29.9346591,170.99,170.98,0.72]
[1754393832229,6.15473214,171.01,170.98,0.72]
[1754393832424,26.0,170.99,170.98,0.72]
[1754393833327,47.29473214,171.03,170.98,0.72]
[1754393833526,73.29473214,171.03,170.99,5.84829522]
[1754393833729,26.0,171.01,171.0,0.66]
[1754393834026,26.0,171.01,170.99,5.84829522]
[1754393834228,6.15473214,171.03,170.99,5.84829522]
[1754393834454,10.08872874,171.03,170.99,5.84829522]
[1754393834651,26.0,171.01,171.0,0.66]
[1754393834950,26.0,171.01,170.99,5.84829522]
[1754393835456,26.0,171.01,171.0,0.66]
[1754393835654,26.0,171.01,171.0,6.50795321]
[1754393838538,32.15473214,171.02,170.99,5.84818952]
[1754393838939,32.15473214,171.02,170.99,6.50818952]
[1754393839148,32.15473214,171.02,171.0,0.66]
[1754393839353,26.0,171.02,170.99,5.84818952]
[1754393839552,26.0,171.02,171.01,0.66]
[1754393840057,32.15473214,171.02,170.99,6.50818952]
[1754393840640,32.80473214,171.02,170.99,6.50818952]
[1754393840947,32.80473214,171.02,170.99,5.84818952]
[1754393841655,6.15473214,171.01,170.99,5.84818952]
[1754393841841,6.15473214,171.01,170.98,5.90863726]
[1754393842045,6.15473214,171.01,170.98,6.56863726]
[1754393842756,6.15473214,171.01,170.98,94.06863726]
[1754393843260,6.15473214,170.99,170.98,87.56]
[1754393844445,32.15473214,171.0,170.98,88.22]
[1754393844760,32.15473214,171.0,170.99,0.66]
[1754393845061,32.15473214,171.0,170.98,87.56]
[1754393845446,32.15473214,171.0,170.98,94.06863234]
[1754393846449,26.0,171.0,170.99,6.50829522]
[1754393846648,32.15473214,171.03,170.99,6.50829522]
[1754393846855,26.0,171.01,171.0,0.66]
[1754393848436,32.80473214,171.01,170.98,0.06]
[1754393848634,6.15473214,170.99,170.98,0.06]
[1754393850470,32.15473214,171.0,170.98,0.77]
[1754393850962,32.15473214,171.01,170.99,0.71]
[1754393851255,32.15473214,171.01,171.0,0.71]
[1754393851462,32.15473214,171.01,170.98,0.77]
[1754393851659,32.15473214,171.0,170.98,0.06]
[1754393854166,26.0,171.0,170.99,0.71]
[1754393854853,6.15473214,171.01,170.99,0.71]
[1754393855057,32.15473214,171.01,170.99,0.71]
[1754393855274,32.15473214,171.01,170.99,6.55826568]
[1754393855562,26.0,171.01,171.0,0.71]
[1754393855764,0.03,171.04,171.0,0.71]
[1754393856066,6.15473214,171.01,170.99,134.46816062]
[1754393856964,6.15473214,171.01,170.99,128.62]
[1754393857163,6.15473214,171.0,170.99,128.62]
[1754393857333,6.15473214,171.0,170.99,87.5]
[1754393857939,6.15473214,171.0,170.99,93.34829522]
[1754393860367,6.15473214,171.0,170.99,5.84829522]
[1754393860565,6.15473214,171.0,170.99,0.71]
[1754393861041,6.15473214,171.0,170.98,5.90863726]
[1754393861243,0.03,171.0,170.98,6.61863726]
[1754393862068,6.86473214,171.0,170.98,5.90863726]
[1754393862756,6.18473214,171.0,170.98,5.90863726]
[1754393863581,6.86473214,171.0,170.98,5.90863726]
[1754393864355,6.18473214,171.0,170.98,5.90863726]
[1754393865453,6.18473214,171.0,170.98,6.61863726]
[1754393866550,6.18473214,171.0,170.98,5.90863726]
[1754393867270,26.03,171.0,170.98,5.90863726]
[1754393867775,0.03,171.0,170.98,6.61863726]
[1754393868149,0.03,171.0,170.99,0.71]
[1754393868979,0.03,171.0,170.99,6.55829522]
[1754393869483,0.03,171.0,170.99,47.67829522]
[1754393870549,0.03,171.0,170.99,47.65829522]
[1754393871048,0.03,171.0,170.99,46.94829522]
[1754393871564,0.03,171.0,170.99,47.65829522]
[1754393871760,0.03,171.0,170.99,46.94829522]
[1754393872072,0.03,171.0,170.99,134.44829522]
[1754393872979,0.03,171.0,170.99,135.15829522]
[1754393875851,0.03,171.0,170.99,134.44829522]
[1754393877178,0.03,171.0,170.99,135.15829522]
[1754393877384,0.71,171.0,170.98,41.16]
[1754393877556,6.15473214,170.99,170.98,41.16]
[1754393877757,6.83473214,170.99,170.98,41.16]
[1754393878451,0.68,170.99,170.98,41.16]
[1754393878956,6.83473214,170.99,170.98,0.06]
[1754393879166,10.81038468,170.99,170.98,0.06]
[1754393880153,10.10038468,170.99,170.98,0.06]
[1754393880458,10.81038468,170.99,170.98,0.06]
[1754393881689,10.10038468,170.99,170.98,0.06]
[1754393882553,10.81038468,170.99,170.98,0.06]
[1754393883081,4.65565254,170.99,170.98,0.06]
[1754393883275,10.81038468,170.99,170.98,0.06]
[1754393885181,10.10038468,170.99,170.98,0.06]
[1754393885759,6.18473214,171.0,170.98,0.74]
[1754393886090,0.03,171.0,170.98,0.74]
[1754393886273,0.03,171.0,170.99,47.25473214]
[1754393886682,0.03,171.0,170.99,47.93473214]
[1754393886854,0.03,171.0,170.99,41.78]
[1754393887883,0.03,171.0,170.99,47.62829522]
[1754393888089,0.03,171.0,170.99,46.94829522]
[1754393888303,6.89473214,171.0,170.98,5.90853777]
[1754393888456,0.03,171.0,170.98,6.58853777]
[1754393888661,0.03,171.0,170.99,0.68]
[1754393889288,0.03,171.0,170.99,41.78]
[1754393889888,0.03,171.0,170.99,47.62829522]
[1754393893921,0.03,171.0,170.99,141.28302736]
[1754393895571,1e-08,171.0,170.99,141.28302736]
[1754393899298,1e-08,171.0,170.99,100.18302736]
[1754393899503,1e-08,171.0,170.99,140.58302736]
[1754393899987,1e-08,171.0,170.99,141.26302736]
[1754393903522,1e-08,171.02,171.01,5.84761125]
[1754393903688,1e-08,171.04,171.02,15.10621557]
[1754393904010,1e-08,171.04,171.03,47.81942488]
[1754393904192,1e-08,171.04,171.03,42.34469274]
[1754393904394,1e-08,171.04,171.03,63.74780202]
[1754393905712,1e-08,171.04,171.03,69.59472945]
[1754393907013,0.03,171.07,171.06,6.15473214]
[1754393907192,0.03,171.07,171.06,47.23473214]
[1754393907392,0.03,171.07,171.06,47.91473214]
[1754393907886,1e-08,171.07,171.06,6.83473214]
[1754393908087,1e-08,171.07,171.06,47.23473214]
[1754393910002,1e-08,171.07,171.06,53.08063416]
[1754393911214,1e-08,171.07,171.06,46.92590202]
[1754393912507,1e-08,171.07,171.06,53.75063416]
[1754393914403,1e-08,171.07,171.06,53.08063416]
[1754393916415,1e-08,171.07,171.06,141.25063416]
[1754393918023,1e-08,171.07,171.06,140.58063416]
[1754393918214,0.66000001,171.07,171.06,134.42590202]
[1754393918404,0.66000001,171.07,171.06,93.34590202]
[1754393918604,0.66000001,171.07,171.06,134.40590202]
[1754393919206,0.66000001,171.07,171.06,46.90590202]
[1754393919922,1e-08,171.07,171.06,46.90590202]
[1754393921032,1e-08,171.07,171.06,53.73063416]
[1754393921397,0.66000001,171.07,171.06,46.90590202]
[1754393925722,1e-08,171.07,171.06,46.90590202]
[1754393926226,1e-08,171.07,171.06,47.57590202]
[1754393927110,1e-08,171.07,171.06,47.63590202]
[1754393927809,1e-08,171.07,171.06,53.79063416]
[1754393928428,1e-08,171.07,171.06,141.29063416]
[1754393929036,1e-08,171.07,171.06,135.13590202]
[1754393931932,1e-08,171.07,171.06,141.29063416]
[1754393933105,1e-08,171.09,171.08,0.14216157]
[1754393933312,1e-08,171.09,171.08,48.59141557]
[1754393933514,1e-08,171.09,171.08,54.43663418]
[1754393933835,1e-08,171.09,171.08,144.27629418]
[1754393934031,1e-08,171.09,171.08,158.79798789]
[1754393935333,0.1,171.14,171.1,0.14216157]
[1754393935641,1e-08,171.14,171.13,21.40310928]
[1754393935838,1e-08,171.14,171.13,63.69746035]
[1754393937640,1e-08,171.14,171.13,69.54097113]
[1754393940724,1e-08,171.14,171.13,46.88351078]
[1754393941036,0.1,171.18,171.13,155.14701987]
[1754393941245,0.1,171.18,171.15,6.15473214]
[1754393941420,0.1,171.18,171.16,41.04]
[1754393941617,0.1,171.18,171.17,5.84214523]
[1754393942340,0.1,171.18,171.16,41.04]
[1754393942636,6.15473214,171.17,171.16,41.04]
[1754393942845,6.25473214,171.18,171.16,46.88248656]
[1754393944130,6.25473214,171.18,171.16,41.04]
[1754393944430,6.15473214,171.17,171.16,41.04]
[1754393944624,6.25473214,171.18,171.16,46.88248656]
[1754393945050,6.25473214,171.18,171.16,41.04]
[1754393945228,6.15473214,171.17,171.16,41.04]
[1754393945544,0.1,171.18,171.16,41.04]
[1754393945847,6.15473214,171.17,171.16,46.88248656]
[1754393946021,6.15473214,171.17,171.16,41.04]
[1754393946433,0.1,171.18,171.16,41.02]
[1754393947940,0.1,171.18,171.17,5.84214523]
[1754393948471,0.1,171.18,171.17,94.03214523]
[1754393948754,0.1,171.18,171.17,100.18687737]
[1754393950151,0.1,171.18,171.17,12.68687737]
[1754393950353,0.1,171.22,171.21,6.15473214]
[1754393950557,0.1,171.22,171.21,47.17473214]
[1754393950743,0.1,171.22,171.21,47.86473214]
[1754393951262,0.1,171.22,171.17,108.63750831]
[1754393951556,0.1,171.22,171.18,47.86473214]
[1754393952255,0.1,171.22,171.19,12.68619484]
[1754393952552,0.1,171.22,171.2,41.02]
[1754393954725,0.1,171.22,171.21,5.84078032]
[1754393957829,6.85473214,171.22,171.2,41.02]
[1754393958029,6.75473214,171.21,171.2,41.02]
[1754393958548,6.15473214,171.21,171.2,41.02]
[1754393959856,6.15473214,171.21,171.2,46.86112149]
[1754393960039,6.25473214,171.22,171.2,46.86112149]
[1754393960241,0.1,171.22,171.2,47.55112149]
[1754393960668,6.25473214,171.22,171.2,47.55112149]
[1754393961353,6.25473214,171.22,171.2,46.86112149]
[1754393961929,0.1,171.22,171.2,46.86112149]
[1754393962330,6.25473214,171.22,171.2,47.55112149]
[1754393962736,0.1,171.22,171.2,46.86112149]
[1754393962951,6.25473214,171.22,171.2,47.55112149]
[1754393963152,6.25473214,171.22,171.21,0.69]
[1754393963153,0.1,171.22,171.21,0.69]
[1754393965155,0.1,171.22,171.21,12.68551246]
[1754393965353,1e-08,171.22,171.21,12.68551246]
[1754393965657,0.1,171.25,171.22,15.24837714]
[1754393965860,0.1,171.25,171.24,6.15473214]
[1754393966183,0.1,171.26,171.24,6.15473214]
[1754393966342,0.1,171.26,171.25,47.84473214]
[1754393967149,0.1,171.26,171.25,53.68414819]
[1754393967348,0.1,171.26,171.25,47.52941605]
[1754393967560,0.1,171.26,171.25,53.68414819]
[1754393969448,1e-08,171.26,171.25,53.68414819]
[1754393969750,1e-08,171.26,171.25,141.18414819]
[1754393970146,1e-08,171.27,171.25,141.18414819]
[1754393970359,1e-08,171.27,171.26,6.87473214]
[1754393970562,1e-08,171.27,171.26,100.21380723]
[1754393971268,4.75869033,171.36,171.26,100.21380723]
[1754393971269,0.1,171.36,171.29,26.0]
[1754393971478,0.1,171.36,171.34,6.15473214]
[1754393971685,0.1,171.36,171.35,41.0]
[1754393971840,0.1,171.36,171.32,0.72]
[1754393972047,6.81473214,171.35,171.3,6.15473214]
[1754393972351,0.66,171.34,171.31,40.98]
[1754393972768,0.66,171.34,171.32,5.83703011]
[1754393972965,6.81473214,171.34,171.33,40.98]
[1754393973690,26.0,171.35,171.33,40.98]
[1754393973844,0.1,171.36,171.33,40.98]
[1754393974042,0.66,171.35,171.34,40.98]
[1754393974445,6.81473214,171.35,171.28,6.15473214]
[1754393974647,26.0,171.35,171.31,6.15473214]
[1754393974872,0.1,171.36,171.32,47.13473214]
[1754393975184,0.66,171.35,171.32,40.98]
[1754393976140,6.25473214,171.36,171.32,40.98]
[1754393976347,6.25473214,171.36,171.32,41.7]
[1754393976553,6.25473214,171.36,171.33,5.83668942]
[1754393976847,6.25473214,171.36,171.34,40.98]
[1754393977450,0.1,171.36,171.34,40.98]
[1754393977657,0.1,171.36,171.35,0.72]
[1754393978048,0.1,171.36,171.34,47.13473214]
[1754393978467,0.1,171.36,171.34,41.7]
[1754393978685,0.1,171.36,171.35,5.83600817]
[1754393980057,0.1,171.36,171.35,6.55600817]
[1754393980259,0.1,171.36,171.35,12.71074031]
[1754393981356,0.1,171.36,171.34,6.154732]
[1754393981559,6.81473214,171.35,171.3,6.55771161]
[1754393981880,6.15473214,171.34,171.31,40.98]
[1754393982081,6.15473214,171.34,171.3,6.55771161]
[1754393982082,6.15473214,171.33,171.3,5.83771161]
[1754393982275,6.15473214,171.33,171.32,40.98]
[1754393982581,6.15473214,171.34,171.32,41.7]
[1754393982876,6.15473214,171.34,171.32,46.81694575]
[1754393983462,0.1,171.36,171.33,0.72]
[1754393983664,6.25473214,171.36,171.34,40.98]
[1754393983854,0.1,171.36,171.34,40.98]
[1754393984056,6.81473214,171.35,171.32,5.83694575]
[1754393984263,6.15473214,171.34,171.33,40.98]
[1754393984760,6.15473214,171.34,171.33,46.81668942]
[1754393984957,0.1,171.36,171.33,46.81668942]
[1754393985163,6.15473214,171.35,171.33,46.81668942]
[1754393985380,6.15473214,171.34,171.33,46.81668942]
[1754393987576,6.15473214,171.35,171.33,47.53668942]
[1754393988094,6.25473214,171.36,171.34,0.72]
[1754393988261,6.25473214,171.36,171.35,40.96]
[1754393988456,0.1,171.36,171.35,41.68]
[1754393988862,0.1,171.36,171.35,47.51600817]
[1754393989884,0.1,171.36,171.35,46.79600817]
[1754393990558,6.25473214,171.36,171.35,46.79600817]
[1754393990976,0.1,171.36,171.35,46.79600817]
[1754393991201,0.1,171.4,171.35,68.26076073]
[1754393991484,0.1,171.4,171.36,0.72]
[1754393991682,0.1,171.4,171.37,40.96]
[1754393991865,0.1,171.4,171.38,0.72]
[1754393992184,0.1,171.4,171.39,40.96]
[1754393992969,6.25473214,171.4,171.39,40.96]
[1754393993359,6.25473214,171.4,171.39,46.79464612]
[1754393994787,6.91473214,171.4,171.39,40.96]
[1754393995356,6.25473214,171.4,171.39,40.96]
[1754393997558,6.25473214,171.4,171.34,0.72]
[1754393997559,12.74903785,171.4,171.34,0.72]
[1754393997758,6.15473214,171.35,171.32,0.72]
[1754393998000,32.15473214,171.37,171.33,41.68]
[1754393998171,6.15473214,171.37,171.33,40.96]
[1754393998368,6.15473214,171.37,171.34,0.72]
[1754393998558,6.15473214,171.37,171.35,41.68]
[1754393999291,6.15473214,171.36,171.35,40.96]
[1754394000614,6.85473214,171.36,171.3,0.7]
[1754394000766,6.15473214,171.32,171.31,40.96]
[1754394001298,5.9768512,171.39,171.31,47.49737084]
[1754394001587,6.15473214,171.36,171.32,0.7]
[1754394001791,6.15473214,171.37,171.33,40.96]
[1754394002086,6.15473214,171.37,171.34,0.7]
[1754394002261,6.15473214,171.36,171.34,0.7]
[1754394002664,6.15473214,171.36,171.33,40.96]
[1754394002895,5.93439735,171.4,171.33,40.96]
[1754394002896,6.15473214,171.37,171.34,0.7]
[1754394003203,6.15473214,171.37,171.35,0.7]
[1754394003364,6.15473214,171.37,171.36,40.96]
[1754394003879,6.15473214,171.38,171.36,41.66]
[1754394004667,6.15473214,171.37,171.36,40.96]
[1754394005283,26.1,171.4,171.36,41.66]
[1754394005487,0.1,171.4,171.37,0.7]
[1754394005676,0.1,171.4,171.37,6.85473214]
[1754394005887,0.1,171.4,171.37,6.15473214]
[1754394006085,0.1,171.4,171.38,0.7]
[1754394006267,0.1,171.4,171.36,5.8356676]
[1754394006597,6.25473214,171.4,171.36,5.8356676]
[1754394006779,6.15473214,171.38,171.37,40.96]
[1754394007509,6.85473214,171.38,171.37,40.96]
[1754394007895,12.68975808,171.38,171.34,40.96]
[1754394008096,6.15473214,171.35,171.34,40.96]
[1754394009297,32.15473214,171.36,171.34,41.66]
[1754394009603,6.15473214,171.37,171.35,0.7]
[1754394009787,6.15473214,171.36,171.35,0.7]
[1754394010108,6.15473214,171.36,171.34,40.96]
[1754394010408,6.85473214,171.35,171.27,11.9934663]
[1754394010584,6.15473214,171.32,171.28,41.66]
[1754394010778,6.15473214,171.32,171.29,0.7]
[1754394011184,6.15473214,171.31,171.27,5.83873416]
[1754394011400,15.10621557,171.37,171.27,6.53873416]
[1754394011401,6.15473214,171.3,171.27,6.53873416]
[1754394011600,31.8369036,171.33,171.28,40.98]
[1754394011601,6.15473214,171.31,171.28,40.98]
[1754394011792,6.15473214,171.31,171.28,41.68]
[1754394012394,6.15473214,171.31,171.28,40.98]
[1754394012596,6.15473214,171.31,171.29,0.7]
[1754394013283,6.15473214,171.31,171.28,40.98]
[1754394013595,6.15473214,171.32,171.3,0.7]
[1754394014188,0.7,171.35,171.31,0.7]
[1754394014478,6.15473214,171.33,171.32,0.7]
[1754394014679,6.15473214,171.35,171.32,0.7]
[1754394014879,6.15473214,171.38,171.33,6.85473214]
[1754394015102,6.15473214,171.39,171.34,47.83473214]
[1754394015298,32.25473214,171.4,171.35,0.7]
[1754394015805,32.15473214,171.39,171.36,6.5356676]
[1754394016010,6.15473214,171.39,171.36,5.8356676]
[1754394016224,32.15473214,171.39,171.37,0.7]
[1754394016690,32.15473214,171.39,171.36,5.8356676]
[1754394017214,6.15473214,171.39,171.36,6.5356676]
[1754394017386,0.1,171.4,171.37,41.68]
[1754394017592,0.1,171.4,171.39,5.83464612]
[1754394018115,0.1,171.4,171.39,6.53464612]
[1754394021516,0.1,171.4,171.39,5.83464612]
[1754394022015,0.1,171.4,171.38,5.83498657]
[1754394022391,0.1,171.4,171.38,6.53498657]
[1754394022611,0.1,171.4,171.38,5.83498657]
[1754394022808,0.1,171.4,171.39,0.7]
[1754394023739,0.1,171.4,171.38,5.83498657]
[1754394023953,0.1,171.4,171.38,6.53498657]
[1754394024243,0.1,171.4,171.38,5.83498657]
[1754394024421,0.1,171.4,171.39,0.7]
[1754394026033,0.1,171.4,171.39,94.03464612]
[1754394026337,0.1,171.4,171.39,134.99464612]
[1754394030227,0.1,171.4,171.39,156.25559383]
[1754394030555,0.1,171.4,171.39,173.77332983]
[1754394031310,1e-08,171.41,171.4,15.24837714]
[1754394031510,1e-08,171.41,171.4,22.67653985]
[1754394031812,0.1,171.54,171.44,15.24837714]
[1754394032030,6.15473214,171.53,171.48,5.83158385]
[1754394032335,6.15473214,171.53,171.49,41.63]
[1754394032515,6.15473214,171.52,171.49,41.63]
[1754394032717,6.15473214,171.52,171.49,40.94]
[1754394032935,6.81473214,171.51,171.49,40.94]
[1754394033111,6.15473214,171.5,171.47,5.83181635]
[1754394033309,6.81473214,171.5,171.48,40.94]
[1754394033529,6.15473214,171.5,171.48,40.94]
[1754394033920,6.15473214,171.49,171.48,40.94]
[1754394034513,0.66,171.52,171.48,40.94]
[1754394034814,6.15473214,171.49,171.48,40.94]
[1754394035619,6.15473214,171.49,171.44,6.15473214]
[1754394035620,6.15473214,171.49,171.43,87.5]
[1754394035821,6.15473214,171.44,171.4,6.52430571]
[1754394036025,6.15473214,171.41,171.4,40.96]
[1754394036241,6.15473214,171.41,171.4,47.48430571]
[1754394037058,6.15473214,171.41,171.4,40.96]
[1754394038263,6.15473214,171.41,171.39,40.96]
[1754394038425,6.15473214,171.4,171.39,40.96]
[1754394040030,6.15473214,171.4,171.39,46.79464612]
[1754394040329,26.66,171.46,171.39,47.54464612]
[1754394040532,0.03,171.41,171.4,0.69]
[1754394040728,0.03,171.41,171.4,41.65]
[1754394040934,6.18473214,171.41,171.4,41.65]
[1754394041524,6.18473214,171.41,171.4,47.48430571]
[1754394041720,6.18473214,171.41,171.4,46.79430571]
[1754394043254,6.18473214,171.41,171.4,47.48430571]
[1754394043627,6.18473214,171.41,171.4,134.98430571]
[1754394043827,6.18473214,171.41,171.4,134.29430571]
[1754394044046,0.03,171.41,171.4,128.46]
[1754394044347,6.18473214,171.41,171.4,128.46]
[1754394047354,6.18473214,171.41,171.4,134.98430571]
[1754394047553,6.18473214,171.41,171.4,129.15]
[1754394048957,6.18473214,171.41,171.4,134.98430571]
[1754394049125,0.03,171.41,171.4,134.98430571]
[1754394049333,6.18473214,171.41,171.4,134.98430571]
[1754394049841,0.03,171.41,171.4,134.98430571]
[1754394050050,6.18473214,171.41,171.4,134.98430571]
[1754394050651,0.03,171.41,171.4,134.98430571]
[1754394051022,6.18473214,171.41,171.4,134.98430571]
[1754394051253,0.03,171.41,171.4,134.98430571]
[1754394058149,0.03,171.41,171.4,141.13903785]
[1754394058333,0.03,171.41,171.4,147.29376985]
[1754394058834,6.15473214,171.5,171.43,15.10621557]
[1754394059054,6.15473214,171.51,171.45,6.15473214]
[1754394059255,6.15473214,171.51,171.46,41.62]
[1754394059452,0.7,171.53,171.47,0.68]
[1754394059642,6.85473214,171.53,171.48,40.94]
[1754394059954,6.15473214,171.51,171.48,40.94]
[1754394060357,6.15473214,171.49,171.48,40.94]
[1754394062734,6.15473214,171.52,171.48,47.45158385]
[1754394062938,0.03,171.51,171.49,0.68]
[1754394063165,0.03,171.51,171.5,40.94]
[1754394063737,0.03,171.51,171.5,41.62]
[1754394064770,0.03,171.51,171.5,53.60563593]
[1754394067075,0.1,171.54,171.5,155.6828954]
[1754394067254,0.1,171.54,171.52,6.15473214]
[1754394067565,0.1,171.54,171.53,40.94]
[1754394067751,0.1,171.54,171.53,41.62]
[1754394068466,0.1,171.54,171.53,47.44988398]
[1754394069876,0.1,171.54,171.53,141.10461612]
[1754394070959,0.1,171.54,171.53,134.94988398]
[1754394071762,22.532252,171.55,171.53,134.94988398]
[1754394071763,22.532252,171.55,171.54,15.10621557]
[1754394072069,26.7,171.64,171.54,109.44094771]
[1754394072251,6.15473214,171.62,171.56,21.26094771]
[1754394072459,6.15473214,171.61,171.58,5.8281851]
[1754394072659,6.85473214,171.61,171.59,40.92]
[1754394072867,6.15473214,171.61,171.59,40.92]
[1754394073060,26.7,171.63,171.59,40.92]
[1754394073261,6.15473214,171.61,171.59,40.92]
[1754394074070,26.0,171.63,171.59,40.92]
[1754394074383,6.15473214,171.6,171.59,40.92]
[1754394074563,6.85473214,171.6,171.59,40.92]
[1754394074873,6.85473214,171.6,171.58,40.92]
[1754394075048,6.15473214,171.59,171.58,46.7481851]
[1754394077546,0.7,171.6,171.58,40.92]
[1754394077746,0.7,171.6,171.58,46.74817632]
[1754394077975,6.15473214,171.59,171.58,46.74817632]
[1754394078550,6.15473214,171.59,171.58,40.92]
[1754394078752,6.15473214,171.59,171.58,46.7481851]
[1754394079082,6.85473214,171.59,171.53,94.00982281]
[1754394079272,6.15473214,171.55,171.54,40.92]
[1754394079459,6.15473214,171.55,171.54,46.74954412]
[1754394080656,6.15473214,171.55,171.54,40.92]
[1754394080862,6.85473214,171.55,171.53,40.9]
[1754394081061,6.15473214,171.55,171.53,40.9]
[1754394081268,6.15473214,171.54,171.52,40.9]
[1754394081465,6.15473214,171.53,171.52,47.41003446]
[1754394081855,0.7,171.57,171.52,47.41003446]
[1754394082076,6.15473214,171.54,171.52,47.41003446]
[1754394082274,6.15473214,171.54,171.53,0.68]
[1754394082478,6.15473214,171.54,171.52,46.73003446]
[1754394082659,6.15473214,171.53,171.52,40.9]
[1754394083188,6.15473214,171.53,171.52,46.73022388]
[1754394083350,6.15473214,171.53,171.52,47.41022388]
[1754394084189,32.15473214,171.6,171.52,47.41022388]
[1754394084190,6.15473214,171.54,171.52,47.41022388]
[1754394084858,6.15473214,171.53,171.52,47.41022388]
[1754394085656,0.7,171.57,171.52,47.41022388]
[1754394085978,6.15473214,171.53,171.52,47.41022388]
[1754394086680,6.15473214,171.53,171.52,47.47022388]
[1754394087270,6.15473214,171.54,171.52,47.47022388]
[1754394087465,6.15473214,171.54,171.53,0.68]
[1754394087659,6.15473214,171.54,171.52,46.79022388]
[1754394087859,6.15473214,171.53,171.52,46.79022388]
[1754394088686,6.85473214,171.53,171.52,0.06]
[1754394088864,6.15473214,171.53,171.52,0.06]
[1754394089072,6.15473214,171.53,171.52,5.89022388]
[1754394089382,6.15473214,171.53,171.52,0.06]
[1754394091569,0.7,171.57,171.52,0.73]
[1754394091860,6.15473214,171.54,171.53,41.59]
[1754394092186,6.15473214,171.54,171.53,40.92]
[1754394092388,6.85473214,171.54,171.52,0.06]
[1754394092573,6.15473214,171.53,171.52,40.98]
[1754394092770,6.15473214,171.53,171.52,0.06]
[1754394093389,6.85473214,171.53,171.52,0.06]
[1754394093890,6.15473214,171.53,171.52,0.06]
[1754394094064,6.15473214,171.53,171.52,6.56022388]
[1754394094555,6.15473214,171.53,171.52,47.48022388]
[1754394094756,6.15473214,171.54,171.52,47.48022388]
[1754394094970,5.82795362,171.59,171.53,0.67]
[1754394094971,6.15473214,171.55,171.53,0.67]
[1754394095168,6.15473214,171.55,171.54,41.59]
[1754394096361,6.15473214,171.55,171.54,40.92]
[1754394097467,6.15473214,171.55,171.54,46.74954412]
[1754394097872,26.0,171.59,171.54,47.41954412]
[1754394097873,6.15473214,171.56,171.54,47.41954412]
[1754394099279,6.15473214,171.56,171.54,46.74954412]
[1754394099477,6.15473214,171.55,171.54,46.74954412]
[1754394100797,26.0,171.6,171.54,134.91954412]
[1754394100980,6.15473214,171.58,171.55,0.67]
[1754394101187,6.15473214,171.58,171.56,40.92]
[1754394101388,6.15473214,171.58,171.56,41.59]
[1754394101893,6.15473214,171.57,171.56,40.92]
[1754394102270,26.7,171.6,171.56,40.92]
[1754394102493,26.0,171.6,171.56,41.59]
[1754394102693,6.15473214,171.58,171.56,41.59]
[1754394102996,26.0,171.6,171.54,87.5]
[1754394102997,6.15473214,171.57,171.54,87.5]
[1754394103183,6.15473214,171.55,171.54,87.5]
[1754394103380,6.15473214,171.55,171.52,5.89000587]
[1754394103381,6.85473214,171.55,171.52,46.81000587]
[1754394103581,6.15473214,171.53,171.52,46.81000587]
[1754394105302,6.15473214,171.54,171.52,47.48000587]
[1754394105505,6.15473214,171.53,171.52,46.81000587]
[1754394106590,6.15473214,171.54,171.52,47.48000587]
[1754394106900,6.15473214,171.54,171.53,0.67]
[1754394107990,6.15473214,171.54,171.52,46.81000587]
[1754394108303,6.15473214,171.54,171.52,47.48000587]
[1754394108675,6.15473214,171.54,171.52,134.98000587]
[1754394109092,26.0,171.57,171.53,0.67]
[1754394109302,6.15473214,171.54,171.52,148.88556557]